lending/lending_fUSD_20240710
["ID","MTS","AMOUNT","RATE_DAILY","PERIOD"]
[331648787,1720604067596,925.81497172,0.00011199,2]
[331648788,1720604078707,1500.0,0.00011199,2]
[331648789,1720604080145,455.74818316,0.00011199,2]
[331648790,1720604109298,528.49643995,0.00011199,2]
[331648791,1720604109566,546.16417229,0.00011199,2]
[331648792,1720604123959,202.2047168,0.00011199,2]
[331648793,1720604130180,324.27278701,0.00011199,2]
[331648794,1720604133369,268.96215376,0.00011199,2]
[331648795,1720604134049,425.0530105,0.00011199,2]
[331648796,1720604146439,526.80519715,0.00011199,2]
[331648797,1720604150480,155.31109448,0.00011199,2]
[331648798,1720604150690,341.77,0.00010585,2]
[331648799,1720604151023,155.0,0.00011199,2]
[331648800,1720604152502,155.0,0.00011199,2]
[331648801,1720604152804,216.62238623,0.00011199,2]
[331648802,1720604157175,284.81221806,0.00011199,2]
[331648803,1720604160866,278.57649126,0.00011199,2]
[331648804,1720604165247,243.2910391,0.00011199,2]
[331648805,1720604179337,159.1434954,0.00011199,2]
[331648806,1720604180988,158.72665019,0.00011199,2]
[331648807,1720604183558,292.72753144,0.00011199,2]
[331648809,1720604186012,264.7511771,0.00011199,2]
[331648818,1720604322395,167.25339395,0.00011199,2]
[331648819,1720604350023,932.52924195,0.00011199,2]
[331648820,1720604363444,155.39444062,0.00011199,2]
[331648821,1720604386455,895.9,0.00010959,2]
[331648823,1720604438398,476.03363013,0.00011199,2]
[331648825,1720604443746,155.07865353,0.00011199,2]
[331648826,1720604467336,16000.0,0.00010959,2]
[331648827,1720604494410,286.33873015,0.00011199,2]
[331648828,1720604504429,400.0,0.00011199,2]
[331648829,1720604515011,438.24977967,0.00011199,2]
[331648830,1720604525310,269.90090061,0.00011199,2]
[331648831,1720604530898,1400.85115981,0.00011199,2]
[331648833,1720604581603,3988.40957114,0.00011199,2]
[331648836,1720604589423,7494.96889435,0.00011199,2]
[331648837,1720604597719,305.78334679,0.00011199,2]
[331648838,1720604629918,1904.31747652,0.00011199,2]
[331648839,1720604677409,1239.37016368,0.00011199,2]
[331648840,1720604677781,441.5623675,0.00011199,2]
[331648841,1720604693671,478.26290368,0.00011199,2]
[331648842,1720604755532,703.3880182,0.00011199,2]
[331648843,1720604761684,363.23326655,0.00011199,2]
[331648844,1720604787944,222.49872041,0.00011199,2]
[331648845,1720604791067,314.02325325,0.00011199,2]
[331648846,1720604793446,479.75080474,0.00011199,2]
[331648847,1720604845449,365.82,9.986e-05,2]
[331648848,1720604877938,475.82726567,0.00011199,2]
[331648850,1720604911441,400.0,0.00011199,2]
[331648851,1720604916591,424.88086916,0.00011199,2]
[331648852,1720604944417,167.25339395,0.00011199,2]
[331648854,1720605025276,283.53670071,0.00011199,2]
[331648855,1720605032344,-161.32035324,0.00011759,2]
[331648856,1720605032353,-500.0,0.000118,2]
[331648857,1720605032363,-150.0,0.00011846,2]
[331648858,1720605032372,-250.0,0.00011859,2]
[331648859,1720605032382,-153.5,0.00011864,2]
[331648860,1720605032392,-1022.23192976,0.00011864,2]
[331648862,1720605033820,-592.45237677,0.00011864,2]
[331648863,1720605033831,-603.03497768,0.00011864,2]
[331648864,1720605033843,-347.60875311,0.00011864,2]
[331648865,1720605033854,-1641.80725571,0.00011864,2]
[331648866,1720605033866,-9481.54435372,0.00011864,2]
[331648867,1720605033875,-962.44,0.0001187,2]
[331648868,1720605033885,-800.0,0.00011887,2]
[331648869,1720605033894,-250.0,0.00011912,2]
[331648870,1720605033904,-150.0,0.00011918,2]
[331648871,1720605033914,-200.0,0.00011938,2]
[331648872,1720605033923,-2610.27,0.00011947,2]
[331648873,1720605033933,-365.82,0.00012249,2]
[331648874,1720605033942,-155.0,0.00012273,2]
[331648875,1720605033952,-1640.46,0.00012273,2]
[331648876,1720605033961,-8208.12,0.00012273,2]
[331648877,1720605033971,-499.99,0.00012302,2]
[331648878,1720605033981,-308.6,0.00012302,2]
[331648879,1720605033990,-150.99,0.00012302,2]
[331648880,1720605033999,-999.99,0.00012302,2]
[331648881,1720605034009,-306.36663069,0.00012302,2]
[331648882,1720605034018,-150.0,0.00012403,2]
[331648883,1720605034027,-228.74,0.00012464,2]
[331648884,1720605034038,-178.8,0.00012469,2]
[331648885,1720605034047,-170.1,0.0001249,2]
[331648886,1720605034057,-735.54,0.00012503,2]
[331648887,1720605034066,-735.54,0.00012506,2]
[331648888,1720605034075,-735.54,0.0001251,2]
[331648889,1720605034085,-735.54,0.00012513,2]
[331648890,1720605034094,-735.54,0.00012516,2]
[331648891,1720605034103,-735.54,0.00012519,2]
[331648892,1720605034113,-735.54,0.00012523,2]
[331648893,1720605034122,-735.54,0.00012526,2]
[331648894,1720605034132,-735.54,0.00012529,2]
[331648895,1720605034141,-735.54,0.00012533,2]
[331648896,1720605034151,-735.54,0.00012536,2]
[331648897,1720605034160,-735.54,0.00012539,2]
[331648898,1720605034170,-735.54,0.00012542,2]
[331648899,1720605034179,-735.54,0.00012546,2]
[331648900,1720605034189,-735.54,0.00012549,2]
[331648901,1720605034198,-735.54,0.00012552,2]
[331648902,1720605034208,-735.54,0.00012556,2]
[331648903,1720605034217,-735.54,0.00012559,2]
[331648904,1720605034227,-735.54,0.00012562,2]
[331648905,1720605034236,-735.54,0.00012565,2]
[331648906,1720605034246,-27142.99559255,0.00012584,2]
[331648907,1720605034255,-153.51,0.00012614,2]
[331648908,1720605034265,-155.40245822,0.0001299,2]
[331648909,1720605034275,-854.69,0.00013041,2]
[331648910,1720605034284,-462.24258694,0.00013128,2]
[331648911,1720605034294,-887.80533656,0.00013128,2]
[331648912,1720605034304,-155.0,0.00013128,2]
[331648913,1720605034313,-826.24677579,0.00013128,2]
[331648914,1720605034323,-172.94,0.00013145,2]
[331648915,1720605034333,-424.61,0.00013178,2]
[331648916,1720605034343,-150.0,0.00013188,2]
[331648917,1720605034353,-197.9427257,0.00013209,2]
[331648918,1720605034363,-385.96925274,0.00013249,2]
[331648919,1720605034373,-150.0,0.00013274,2]
[331648920,1720605034383,-959.860609,0.00013283,2]
[331648921,1720605034393,-150.0,0.00013289,2]
[331648922,1720605034403,-2314.8852,0.000133,2]
[331648923,1720605034412,-150.0,0.00013329,2]
[331648924,1720605034422,-431.11611,0.0001336,2]
[331648925,1720605034431,-800.0,0.00013373,2]
[331648926,1720605034443,-150.0,0.00013396,2]
[331648927,1720605034452,-15490.25824147,0.000134,2]
[331648928,1720605034466,-717.88362449,0.000134,2]
[331648929,1720605034479,-1878.55997651,0.000134,2]
[331648930,1720605034491,-2624.64023062,0.000134,2]
[331648931,1720605034502,-453.51,0.000134,2]
[331648932,1720605034514,-2879.4795,0.000134,2]
[331648933,1720605034526,-866.14476485,0.000134,2]
[331648934,1720605034537,-21413.93446206,0.000134,2]
[331648935,1720605034546,-2293.1498,0.000134,2]
[331648936,1720605034556,-12214.258,0.000134,2]
[331648937,1720605034566,-1000.0,0.000134,2]
[331648938,1720605034576,-8027.39781653,0.000134,2]
[331648939,1720605034586,-150.0,0.00013408,2]
[331648940,1720605034596,-150.0,0.0001341,2]
[331648941,1720605034606,-200.0,0.0001343,2]
[331648942,1720605034615,-150.93,0.00013479,2]
[331648943,1720605034626,-202.10180193,0.0001349,2]
[331648944,1720605034637,-150.01,0.00013499,2]
[331648945,1720605034647,-3724.33271463,0.00013499,2]
[331648946,1720605034657,-211346.68486808,0.000135,2]
[331648947,1720605034669,-3932.12964903,0.000135,2]
[331648948,1720605034680,-293.43812873,0.000135,2]
[331648949,1720605034692,-3300.0,0.000135,2]
[331648950,1720605034704,-5923.0,0.000135,2]
[331648951,1720605034715,-5136.10633996,0.000135,2]
[331648952,1720605034728,-336.000007,0.000135,2]
[331648953,1720605034740,-1094.6407865,0.000135,2]
[331648954,1720605034751,-1648.23341372,0.000135,2]
[331648955,1720605034762,-14823.91732064,0.000135,2]
[331648956,1720605034773,-1562.75,0.000135,2]
[331648962,1720605037428,-344.17843278,0.00012302,2]
[331648964,1720605037662,-482.06834301,0.00012302,2]
[331648965,1720605037672,-91.62165699,0.000135,2]
[331648966,1720605037684,-726.08904086,0.000135,2]
[331648967,1720605037718,-278366.58694749,0.000135,2]
[331648968,1720605037729,-155.0,0.000135,2]
[331648969,1720605037738,-203.551235,0.00013511,2]
[331648970,1720605037747,-791.559191,0.00013511,2]
[331648971,1720605037756,-156.444563,0.00013511,2]
[331648972,1720605037765,-193.868125,0.00013511,2]
[331648973,1720605037774,-791.157413,0.00013511,2]
[331648974,1720605037784,-178.625946,0.00013511,2]
[331648975,1720605037793,-368.79606,0.00013511,2]
[331648976,1720605037802,-170.29919,0.00013511,2]
[331648977,1720605037813,-183.930618,0.00013511,2]
[331648978,1720605037822,-198.106994,0.00013511,2]
[331648979,1720605037832,-809.936361,0.00013511,2]
[331648980,1720605037841,-304.219999,0.00013511,2]
[331648981,1720605037851,-354.250489,0.00013511,2]
[331648982,1720605037861,-292.717918,0.00013511,2]
[331648983,1720605037870,-1251.0,0.00013564,2]
[331648984,1720605037880,-359.939,0.00013564,2]
[331648985,1720605037889,-1659.0,0.00013564,2]
[331648986,1720605037899,-1830.0,0.00013564,2]
[331648987,1720605037908,-798.0,0.00013564,2]
[331648988,1720605037918,-449.0,0.00013564,2]
[331648989,1720605037927,-398.051,0.00013564,2]
[331648990,1720605037936,-619.0,0.00013564,2]
[331648991,1720605037946,-5812.0,0.00013564,2]
[331648992,1720605037955,-5178.0,0.00013564,2]
[331648993,1720605037965,-1199.0,0.00013564,2]
[331648994,1720605037976,-1665.0,0.00013564,2]
[331648995,1720605037986,-38250.0,0.00013564,2]
[331648996,1720605037995,-167.25339395,0.00013574,2]
[331648997,1720605038005,-400.0,0.00013574,2]
[331648998,1720605038015,-1812.56054312,0.0001358,2]
[331648999,1720605038025,-173.98552994,0.00013598,2]
[331649000,1720605038035,-161.16502464,0.00013598,2]
[331649001,1720605038045,-7500.0,0.00013598,2]
[331649002,1720605038055,-1124.0,0.000136,2]
[331649003,1720605038065,-791.559191,0.0001368,2]
[331649004,1720605038075,-791.157413,0.0001368,2]
[331649005,1720605038085,-368.79606,0.0001368,2]
[331649006,1720605038095,-809.936361,0.0001368,2]
[331649007,1720605038105,-304.219999,0.0001368,2]
[331649008,1720605038115,-354.250489,0.0001368,2]
[331649009,1720605038124,-292.717918,0.0001368,2]
[331649010,1720605038134,-779.0,0.00013694,2]
[331649011,1720605038144,-809.57,0.00013698,2]
[331649012,1720605038154,-918.63,0.00013698,2]
[331649013,1720605038164,-500.0,0.00013698,2]
[331649014,1720605038174,-581.8,0.00013698,2]
[331649015,1720605038183,-500.0,0.00013698,2]
[331649016,1720605038193,-554.12,0.00013698,2]
[331649017,1720605038203,-568.67,0.00013698,2]
[331649018,1720605038213,-500.0,0.00013698,2]
[331649019,1720605038223,-500.0,0.00013698,2]
[331649020,1720605038234,-532.07,0.00013698,2]
[331649021,1720605038245,-500.0,0.00013698,2]
[331649022,1720605038254,-500.0,0.00013698,2]
[331649023,1720605038264,-500.0,0.00013698,2]
[331649024,1720605038274,-500.0,0.00013698,2]
[331649025,1720605038284,-500.0,0.00013698,2]
[331649026,1720605038293,-500.0,0.00013698,2]
[331649027,1720605038303,-500.0,0.00013698,2]
[331649028,1720605038312,-500.0,0.00013698,2]
[331649029,1720605038322,-500.0,0.00013698,2]
[331649030,1720605038332,-500.0,0.00013698,2]
[331649031,1720605038341,-500.0,0.00013698,2]
[331649032,1720605038350,-833.89,0.00013698,2]
[331649033,1720605038360,-500.0,0.00013698,2]
[331649034,1720605038370,-500.0,0.00013698,2]
[331649035,1720605038379,-1090.92,0.00013698,2]
[331649036,1720605038389,-500.0,0.00013698,2]
[331649037,1720605038398,-688.49,0.00013698,2]
[331649038,1720605038409,-500.0,0.00013698,2]
[331649039,1720605038419,-500.0,0.00013698,2]
[331649040,1720605038428,-500.0,0.00013698,2]
[331649041,1720605038438,-909.27,0.00013698,2]
[331649042,1720605038447,-500.0,0.00013698,2]
[331649043,1720605038457,-500.0,0.00013698,2]
[331649044,1720605038467,-665.0,0.00013698,2]
[331649045,1720605038478,-502.27,0.00013698,2]
[331649046,1720605038488,-730.97,0.00013698,2]
[331649047,1720605038498,-500.0,0.00013698,2]
[331649048,1720605038508,-712.04,0.00013698,2]
[331649049,1720605038517,-500.0,0.00013698,2]
[331649050,1720605038528,-500.0,0.00013698,2]
[331649051,1720605038537,-500.0,0.00013698,2]
[331649052,1720605038547,-500.0,0.00013698,2]
[331649053,1720605038556,-500.0,0.00013698,2]
[331649054,1720605038566,-500.0,0.00013698,2]
[331649055,1720605038575,-500.0,0.00013698,2]
[331649056,1720605038585,-500.0,0.00013698,2]
[331649057,1720605038595,-500.0,0.00013698,2]
[331649058,1720605038605,-500.0,0.00013698,2]
[331649059,1720605038615,-1185.53,0.00013698,2]
[331649060,1720605038625,-500.0,0.00013698,2]
[331649061,1720605038634,-500.0,0.00013698,2]
[331649062,1720605038644,-500.0,0.00013698,2]
[331649063,1720605038653,-500.0,0.00013698,2]
[331649064,1720605038663,-500.0,0.00013698,2]
[331649065,1720605038673,-500.0,0.00013698,2]
[331649066,1720605038683,-500.0,0.00013698,2]
[331649067,1720605038692,-500.0,0.00013698,2]
[331649068,1720605038702,-500.0,0.00013698,2]
[331649069,1720605038712,-486.9941454,0.00013698,2]
[331649070,1720605038722,-500.0,0.00013698,2]
[331649071,1720605038734,-273.54764092,0.00013698,2]
[331649072,1720605038744,-500.0,0.00013698,2]
[331649073,1720605038754,-500.0,0.00013698,2]
[331649074,1720605038763,-500.0,0.00013698,2]
[331649075,1720605038773,-500.0,0.00013698,2]
[331649076,1720605038783,-832.2,0.00013698,2]
[331649077,1720605038792,-500.0,0.00013698,2]
[331649078,1720605038802,-500.0,0.00013698,2]
[331649079,1720605038812,-500.0,0.00013698,2]
[331649080,1720605038822,-500.0,0.00013698,2]
[331649081,1720605038831,-500.0,0.00013698,2]
[331649082,1720605038841,-500.0,0.00013698,2]
[331649083,1720605038851,-500.0,0.00013698,2]
[331649084,1720605038861,-178.40492046,0.00013698,2]
[331649085,1720605038871,-576.04,0.00013698,2]
[331649086,1720605038881,-511.82,0.00013698,2]
[331649087,1720605038890,-500.0,0.00013698,2]
[331649088,1720605038900,-500.0,0.00013698,2]
[331649089,1720605038910,-500.0,0.00013698,2]
[331649090,1720605038919,-728.14,0.00013698,2]
[331649091,1720605038929,-598.71,0.00013698,2]
[331649092,1720605038938,-500.0,0.00013698,2]
[331649093,1720605038948,-500.0,0.00013698,2]
[331649094,1720605038958,-815.92,0.00013698,2]
[331649095,1720605038967,-500.0,0.00013698,2]
[331649096,1720605038978,-629.58197947,0.00013698,2]
[331649097,1720605038987,-500.0,0.00013698,2]
[331649098,1720605038996,-651.84,0.00013698,2]
[331649099,1720605039006,-906.4,0.00013698,2]
[331649100,1720605039016,-500.0,0.00013698,2]
[331649101,1720605039025,-500.0,0.00013698,2]
[331649102,1720605039035,-691.82,0.00013698,2]
[331649103,1720605039044,-500.0,0.00013698,2]
[331649104,1720605039054,-500.0,0.00013698,2]
[331649105,1720605039064,-500.0,0.00013698,2]
[331649106,1720605039076,-500.0,0.00013698,2]
[331649107,1720605039086,-500.0,0.00013698,2]
[331649108,1720605039096,-500.0,0.00013698,2]
[331649109,1720605039106,-500.0,0.00013698,2]
[331649110,1720605039116,-500.0,0.00013698,2]
[331649111,1720605039125,-1619.05,0.00013698,2]
[331649112,1720605039135,-715.64,0.00013698,2]
[331649113,1720605039144,-500.0,0.00013698,2]
[331649114,1720605039154,-500.0,0.00013698,2]
[331649115,1720605039164,-707.83,0.00013698,2]
[331649116,1720605039174,-949.03,0.00013698,2]
[331649117,1720605039184,-1045.95,0.00013698,2]
[331649118,1720605039194,-500.0,0.00013698,2]
[331649119,1720605039203,-500.0,0.00013698,2]
[331649120,1720605039213,-500.0,0.00013698,2]
[331649122,1720605039223,-500.0,0.00013698,2]
[331649124,1720605039234,-1120.3,0.00013698,2]
[331649126,1720605039244,-597.53,0.00013698,2]
[331649129,1720605039254,-500.0,0.00013698,2]
[331649131,1720605039264,-889.25,0.00013698,2]
[331649133,1720605039274,-725.03,0.00013698,2]
[331649134,1720605039283,-621.78,0.00013698,2]
[331649136,1720605039293,-565.94,0.00013698,2]
[331649138,1720605039303,-605.34,0.00013698,2]
[331649139,1720605039312,-500.0,0.00013698,2]
[331649140,1720605039322,-500.0,0.00013698,2]
[331649141,1720605039332,-500.0,0.00013698,2]
[331649142,1720605039342,-347.36969754,0.00013698,2]
[331649144,1720605039352,-500.0,0.00013698,2]
[331649145,1720605039363,-650.88,0.00013698,2]
[331649146,1720605039373,-500.0,0.00013698,2]
[331649147,1720605039383,-500.0,0.00013698,2]
[331649148,1720605039394,-410.06895002,0.00013698,2]
[331649149,1720605039404,-1256.77,0.00013698,2]
[331649150,1720605039414,-500.0,0.00013698,2]
[331649151,1720605039424,-712.2,0.00013698,2]
[331649153,1720605039434,-592.34,0.00013698,2]
[331649155,1720605039445,-500.0,0.00013698,2]
[331649157,1720605039455,-500.0,0.00013698,2]
[331649159,1720605039465,-544.07,0.00013698,2]
[331649161,1720605039478,-500.0,0.00013698,2]
[331649163,1720605039488,-500.0,0.00013698,2]
[331649165,1720605039498,-709.17,0.00013698,2]
[331649167,1720605039510,-500.0,0.00013698,2]
[331649169,1720605039520,-691.8,0.00013698,2]
[331649171,1720605039532,-830.48,0.00013698,2]
[331649173,1720605039542,-500.0,0.00013698,2]
[331649175,1720605039551,-500.0,0.00013698,2]
[331649177,1720605039561,-500.0,0.00013698,2]
[331649179,1720605039571,-984.38,0.00013698,2]
[331649181,1720605039580,-500.0,0.00013698,2]
[331649183,1720605039589,-500.0,0.00013698,2]
[331649184,1720605039599,-614.1,0.00013698,2]
[331649185,1720605039608,-514.15,0.00013698,2]
[331649186,1720605039618,-500.0,0.00013698,2]
[331649187,1720605039627,-880.24,0.00013698,2]
[331649188,1720605039648,-787.51,0.00013698,2]
[331649189,1720605039659,-500.0,0.00013698,2]
[331649190,1720605039668,-500.0,0.00013698,2]
[331649191,1720605039678,-500.0,0.00013698,2]
[331649192,1720605039688,-500.0,0.00013698,2]
[331649193,1720605039698,-454.59069362,0.00013698,2]
[331649194,1720605039708,-500.73,0.00013698,2]
[331649195,1720605039718,-184.23756877,0.00013698,2]
[331649196,1720605039728,-500.0,0.00013698,2]
[331649197,1720605039739,-690.8,0.00013698,2]
[331649198,1720605039749,-931.15,0.00013698,2]
[331649199,1720605039760,-500.0,0.00013698,2]
[331649200,1720605039770,-715.81,0.00013698,2]
[331649201,1720605039781,-500.0,0.00013698,2]
[331649202,1720605039792,-500.0,0.00013698,2]
[331649203,1720605039802,-500.0,0.00013698,2]
[331649204,1720605039812,-500.0,0.00013698,2]
[331649205,1720605039822,-500.0,0.00013698,2]
[331649206,1720605039832,-500.0,0.00013698,2]
[331649207,1720605039842,-618.34,0.00013698,2]
[331649208,1720605039851,-500.0,0.00013698,2]
[331649209,1720605039860,-500.0,0.00013698,2]
[331649210,1720605039870,-683.27,0.00013698,2]
[331649211,1720605039880,-541.68,0.00013698,2]
[331649212,1720605039890,-500.0,0.00013698,2]
[331649213,1720605039900,-615.77,0.00013698,2]
[331649214,1720605039909,-940.28,0.00013698,2]
[331649215,1720605039919,-500.0,0.00013698,2]
[331649216,1720605039928,-500.0,0.00013698,2]
[331649217,1720605039938,-565.66,0.00013698,2]
[331649218,1720605039948,-500.0,0.00013698,2]
[331649219,1720605039958,-500.0,0.00013698,2]
[331649220,1720605039968,-1138.52,0.00013698,2]
[331649221,1720605039978,-630.3,0.00013698,2]
[331649222,1720605039988,-500.0,0.00013698,2]
[331649224,1720605039998,-500.0,0.00013698,2]
[331649226,1720605040008,-500.0,0.00013698,2]
[331649228,1720605040018,-865.59,0.00013698,2]
[331649229,1720605040027,-500.0,0.00013698,2]
[331649231,1720605040037,-500.0,0.00013698,2]
[331649234,1720605040046,-500.0,0.00013698,2]
[331649235,1720605040056,-525.91,0.00013698,2]
[331649237,1720605040065,-500.0,0.00013698,2]
[331649239,1720605040075,-757.04,0.00013698,2]
[331649242,1720605040085,-437.99959636,0.00013698,2]
[331649244,1720605040095,-500.0,0.00013698,2]
[331649273,1720605040365,-1016.5,0.00013698,2]
[331649276,1720605040386,-500.0,0.00013698,2]
[331649278,1720605040396,-629.98,0.00013698,2]
[331649280,1720605040406,-500.0,0.00013698,2]
[331649282,1720605040415,-1127.67,0.00013698,2]
[331649284,1720605040425,-500.0,0.00013698,2]
[331649286,1720605040435,-500.0,0.00013698,2]
[331649288,1720605040444,-688.55,0.00013698,2]
[331649290,1720605040454,-500.0,0.00013698,2]
[331649292,1720605040463,-500.0,0.00013698,2]
[331649294,1720605040473,-889.17,0.00013698,2]
[331649296,1720605040484,-500.0,0.00013698,2]
[331649298,1720605040494,-853.5,0.00013698,2]
[331649300,1720605040504,-500.0,0.00013698,2]
[331649302,1720605040514,-1661.49,0.00013698,2]
[331649304,1720605040524,-621.87,0.00013698,2]
[331649306,1720605040535,-969.44,0.00013698,2]
[331649308,1720605040545,-500.0,0.00013698,2]
[331649309,1720605040554,-500.0,0.00013698,2]
[331649311,1720605040563,-500.0,0.00013698,2]
[331649312,1720605040573,-706.97,0.00013698,2]
[331649313,1720605040583,-636.3,0.00013698,2]
[331649314,1720605040592,-500.0,0.00013698,2]
[331649315,1720605040602,-818.65,0.00013698,2]
[331649316,1720605040613,-500.0,0.00013698,2]
[331649317,1720605040622,-500.0,0.00013698,2]
[331649318,1720605040632,-500.0,0.00013698,2]
[331649319,1720605040643,-767.29,0.00013698,2]
[331649320,1720605040654,-562.0,0.00013698,2]
[331649321,1720605040664,-1162.05,0.00013698,2]
[331649322,1720605040673,-636.74,0.00013698,2]
[331649323,1720605040683,-500.0,0.00013698,2]
[331649324,1720605040693,-850.97,0.00013698,2]
[331649325,1720605040702,-500.0,0.00013698,2]
[331649326,1720605040713,-591.32,0.00013698,2]
[331649327,1720605040725,-500.0,0.00013698,2]
[331649328,1720605040735,-500.0,0.00013698,2]
[331649329,1720605040744,-500.0,0.00013698,2]
[331649330,1720605040753,-500.0,0.00013698,2]
[331649331,1720605040764,-500.0,0.00013698,2]
[331649332,1720605040773,-500.0,0.00013698,2]
[331649333,1720605040783,-500.0,0.00013698,2]
[331649334,1720605040792,-500.0,0.00013698,2]
[331649335,1720605040802,-240.95209177,0.00013698,2]
[331649336,1720605040811,-902.1,0.00013698,2]
[331649337,1720605040821,-538.09,0.00013698,2]
[331649338,1720605040830,-868.99,0.00013698,2]
[331649339,1720605040839,-500.0,0.00013698,2]
[331649340,1720605040849,-766.75,0.00013698,2]
[331649341,1720605040859,-576.02,0.00013698,2]
[331649342,1720605040868,-500.0,0.00013698,2]
[331649343,1720605040878,-1193.48,0.00013698,2]
[331649344,1720605040887,-507.56,0.00013698,2]
[331649345,1720605040897,-500.0,0.00013698,2]
[331649346,1720605040906,-500.0,0.00013698,2]
[331649347,1720605040916,-842.22,0.00013698,2]
[331649348,1720605040925,-500.0,0.00013698,2]
[331649349,1720605040935,-732.11,0.00013698,2]
[331649350,1720605040944,-500.0,0.00013698,2]
[331649351,1720605040954,-469.23264411,0.00013698,2]
[331649352,1720605040964,-500.0,0.00013698,2]
[331649353,1720605040974,-581.86296108,0.00013698,2]
[331649354,1720605040985,-500.0,0.00013698,2]
[331649355,1720605040994,-243.92712668,0.00013698,2]
[331649356,1720605041003,-500.0,0.00013698,2]
[331649357,1720605041013,-1021.16,0.00013698,2]
[331649358,1720605041025,-2170.18,0.00013698,2]
[331649359,1720605041035,-1234.09,0.00013698,2]
[331649360,1720605041045,-642.04,0.00013698,2]
[331649361,1720605041055,-676.92,0.00013698,2]
[331649362,1720605041065,-500.0,0.00013698,2]
[331649363,1720605041075,-500.0,0.00013698,2]
[331649364,1720605041085,-500.0,0.00013698,2]
[331649365,1720605041094,-1209.88,0.00013698,2]
[331649366,1720605041104,-752.3,0.00013698,2]
[331649367,1720605041114,-1202.0,0.00013698,2]
[331649368,1720605041124,-500.0,0.00013698,2]
[331649369,1720605041134,-500.0,0.00013698,2]
[331649370,1720605041144,-1565.99,0.00013698,2]
[331649371,1720605041154,-500.0,0.00013698,2]
[331649372,1720605041164,-500.0,0.00013698,2]
[331649373,1720605041174,-500.0,0.00013698,2]
[331649374,1720605041184,-500.0,0.00013698,2]
[331649375,1720605041194,-500.0,0.00013698,2]
[331649376,1720605041204,-500.0,0.00013698,2]
[331649377,1720605041214,-1474.53,0.00013698,2]
[331649378,1720605041223,-500.0,0.00013698,2]
[331649379,1720605041235,-913.86,0.00013698,2]
[331649380,1720605041244,-663.74,0.00013698,2]
[331649381,1720605041255,-501.50464805,0.00013698,2]
[331649382,1720605041265,-500.0,0.00013698,2]
[331649383,1720605041275,-745.7,0.00013698,2]
[331649384,1720605041285,-500.0,0.00013698,2]
[331649385,1720605041295,-500.0,0.00013698,2]
[331649386,1720605041305,-500.0,0.00013698,2]
[331649387,1720605041315,-867.31,0.00013698,2]
[331649388,1720605041325,-1340.01,0.00013698,2]
[331649389,1720605041334,-782.61,0.00013698,2]
[331649390,1720605041344,-1436.94,0.00013698,2]
[331649391,1720605041353,-804.29,0.00013698,2]
[331649392,1720605041363,-500.0,0.00013698,2]
[331649393,1720605041373,-870.61,0.00013698,2]